[Event "44th Chess Olympiad Open 2022"]
[Site "Chennai"]
[Date "2022.08.01"]
[Round "4.88"]
[White "Christopher, Art"]
[Black "dos Reis, Tito"]
[Result "0-1"]
[WhiteElo "1616"]
[BlackElo "1658"]
[Annotator "NA RC"]
[PlyCount "78"]
[EventDate "2022.??.??"]
[TimeControl "60"]

1. f4 {[%emt 0:00:21]} d6 {[%emt 0:00:37]} 2. Nf3 {[%emt 0:00:28]} c6 {[%emt 0:
00:00]} 3. e3 {[%emt 0:00:53]} Bg4 {[%emt 0:01:14]} 4. d4 {[%emt 0:02:35]} e6 {
[%emt 0:00:39]} 5. Bd3 {[%emt 0:01:28]} Bxf3 {[%emt 0:01:20]} 6. Qxf3 {[%emt 0:
00:00]} Qh4+ {[%emt 0:00:19]} 7. g3 {[%emt 0:00:39]} Qd8 {[%emt 0:00:12]} 8.
O-O {[%emt 0:00:20]} g6 {[%emt 0:01:08]} 9. Nd2 {[%emt 0:02:11]} h5 {[%emt 0:
00:00]} 10. Ne4 {[%emt 0:01:21]} Be7 {[%emt 0:01:35]} 11. Ng5 {[%emt 0:01:03]}
Nh6 {[%emt 0:01:03]} 12. Nxe6 {[%emt 0:08:48]} fxe6 {[%emt 0:00:32]} 13. Bxg6+
{[%emt 0:00:25]} Kd7 {[%emt 0:00:24]} 14. e4 {[%emt 0:04:22]} Qf8 {[%emt 0:00:
00]} 15. f5 {[%emt 0:04:00]} exf5 {[%emt 0:01:10]} 16. Qxh5 {[%emt 0:01:28]}
Qg7 {[%emt 0:04:18]} 17. c3 {[%emt 0:05:55]} fxe4 {[%emt 0:01:13]} 18. Bg5 {
[%emt 0:02:40]} Bxg5 {[%emt 0:03:19]} 19. Qxg5 {[%emt 0:00:21]} Kc7 {[%emt 0:
00:00]} 20. Rf6 {[%emt 0:01:32]} Nd7 {[%emt 0:01:13]} 21. Rf4 {[%emt 0:03:59]}
Rag8 {[%emt 0:01:04]} 22. Qa5+ {[%emt 0:05:47]} Kb8 {[%emt 0:00:52]} 23. Bxe4 {
[%emt 0:01:06]} d5 {[%emt 0:00:37]} 24. Bf3 {[%emt 0:05:13]} Qh7 {[%emt 0:00:
00]} 25. Rh4 {[%emt 0:02:29]} Qd3 {[%emt 0:02:17]} 26. Rf1 {[%emt 0:16:24]}
Qe3+ {[%emt 0:01:22]} 27. Kg2 {[%emt 0:01:29]} Nf5 {[%emt 0:03:51]} 28. Rxh8 {
[%emt 0:05:51]} Rxh8 {[%emt 0:00:19]} 29. Qb4 {[%emt 0:00:07]} Qh6 {[%emt 0:00:
00]} 30. h4 {[%emt 0:02:37]} Ne3+ {[%emt 0:00:10]} 31. Kf2 {[%emt 0:01:17]}
Nxf1 {[%emt 0:00:46]} 32. Kxf1 {[%emt 0:00:02]} Qc1+ {[%emt 0:00:28]} 33. Kg2 {
[%emt 0:00:05]} Qd2+ {[%emt 0:01:00]} 34. Kh3 {[%emt 0:00:07]} Qf2 {[%emt 0:00:
00]} 35. Qd6+ {[%emt 0:01:05]} Kc8 {[%emt 0:00:25]} 36. Bg4 {[%emt 0:01:21]}
Qf1+ {[%emt 0:00:31]} 37. Kh2 {[%emt 0:00:09]} Rh7 {[%emt 0:04:42]} 38. Qg6 {
[%emt 0:01:40]} Rf7 {[%emt 0:00:55]} 39. Bxd7+ {[%emt 0:11:48]} Kxd7 {[%emt 0:
00:00]} 0-1

[Event "44th Chess Olympiad Open 2022"]
[Site "Chennai"]
[Date "2022.08.01"]
[Round "4.89"]
[White "Tsephe, Lebajoa"]
[Black "Senglek, Khonsavanh"]
[Result "1-0"]
[WhiteElo "1712"]
[BlackElo "1253"]
[Annotator "NA RC"]
[PlyCount "93"]
[EventDate "2022.??.??"]
[TimeControl "60"]

1. Nf3 {[%emt 0:00:48]} e6 {[%emt 0:00:14]} 2. g3 {[%emt 0:00:08]} Nf6 {
[%emt 0:00:28]} 3. Bg2 {[%emt 0:00:14]} d5 {[%emt 0:00:12]} 4. O-O {[%emt 0:00:
00]} Nc6 {[%emt 0:00:52]} 5. d4 {[%emt 0:00:11]} Bd6 {[%emt 0:00:56]} 6. c4 {
[%emt 0:00:12]} O-O {[%emt 0:02:10]} 7. Nc3 {[%emt 0:00:11]} dxc4 {[%emt 0:00:
00]} 8. Qa4 {[%emt 0:03:12]} Bb4 {[%emt 0:03:01]} 9. Rd1 {[%emt 0:00:56]} a6 {
[%emt 0:00:17]} 10. Ne5 {[%emt 0:00:58]} Bxc3 {[%emt 0:07:28]} 11. Nxc6 {
[%emt 0:01:03]} bxc6 {[%emt 0:00:32]} 12. bxc3 {[%emt 0:00:19]} Nd5 {[%emt 0:
00:00]} 13. Qxc4 {[%emt 0:00:22]} Bb7 {[%emt 0:00:20]} 14. Ba3 {[%emt 0:00:34]}
Re8 {[%emt 0:00:40]} 15. Rab1 {[%emt 0:01:42]} Nb6 {[%emt 0:04:10]} 16. Qd3 {
[%emt 0:02:20]} Rb8 {[%emt 0:02:30]} 17. Bc5 {[%emt 0:00:26]} a5 {[%emt 0:00:
00]} 18. Be4 {[%emt 0:01:20]} g6 {[%emt 0:01:12]} 19. Qf3 {[%emt 0:00:16]} Kg7
{[%emt 0:04:52]} 20. Bxc6 {[%emt 0:02:02]} Bxc6 {[%emt 0:00:18]} 21. Qxc6 {
[%emt 0:00:11]} Nd5 {[%emt 0:00:17]} 22. Ba3 {[%emt 0:12:54]} Rb6 {[%emt 0:00:
00]} 23. Rxb6 {[%emt 0:00:45]} cxb6 {[%emt 0:00:41]} 24. e4 {[%emt 0:00:15]}
Qc7 {[%emt 0:02:40]} 25. exd5 {[%emt 0:01:10]} Qxc6 {[%emt 0:01:46]} 26. dxc6 {
[%emt 0:00:12]} Rc8 {[%emt 0:00:15]} 27. c4 {[%emt 0:00:12]} Rxc6 {[%emt 0:00:
00]} 28. d5 {[%emt 0:00:10]} exd5 {[%emt 0:01:02]} 29. cxd5 {[%emt 0:00:08]}
Rc7 {[%emt 0:02:56]} 30. d6 {[%emt 0:00:16]} Rd7 {[%emt 0:00:08]} 31. Rc1 {
[%emt 0:00:17]} Kf6 {[%emt 0:00:37]} 32. Rc7 {[%emt 0:00:21]} Ke6 {[%emt 0:00:
00]} 33. Rxd7 {[%emt 0:00:13]} Kxd7 {[%emt 0:00:08]} 34. Kf1 {[%emt 0:00:11]}
b5 {[%emt 0:00:00]} 35. Bc5 {[%emt 0:00:00]} h6 {[%emt 0:05:33]} 36. Ke2 {
[%emt 0:00:03]} Ke6 {[%emt 0:00:12]} 37. Kd3 {[%emt 0:00:09]} Kd7 {[%emt 0:00:
00]} 38. Kd4 {[%emt 0:00:22]} Ke6 {[%emt 0:00:19]} 39. a3 {[%emt 0:00:07]} f5 {
[%emt 0:00:20]} 40. f4 {[%emt 0:00:19]} g5 {[%emt 0:01:11]} 41. h3 {[%emt 0:00:
00]} a4 {[%emt 0:32:30]} 42. Bb4 {[%emt 0:00:13]} g4 {[%emt 0:01:10]} 43. h4 {
[%emt 0:00:13]} h5 {[%emt 0:04:12]} 44. Kc5 {[%emt 0:00:09]} Kd7 {[%emt 0:00:
00]} 45. Kxb5 {[%emt 0:00:09]} Kd8 {[%emt 0:00:27]} 46. Kc6 {[%emt 0:00:12]}
Kc8 {[%emt 0:00:21]} 47. Ba5 {[%emt 0:00:20]} 1-0

[Event "44th Chess Olympiad Open 2022"]
[Site "Chennai"]
[Date "2022.08.01"]
[Round "4.90"]
[White "Ihsan Mohamed N T"]
[Black "Sharikhan, Shawal"]
[Result "0-1"]
[WhiteElo "1208"]
[BlackElo "1789"]
[Annotator "NA RC"]
[PlyCount "84"]
[EventDate "2022.??.??"]
[TimeControl "60"]

1. e4 {[%emt 0:00:09]} c5 {[%emt 0:00:12]} 2. Nc3 {[%emt 0:00:53]} Nc6 {
[%emt 0:00:27]} 3. Bc4 {[%emt 0:00:27]} Nf6 {[%emt 0:00:30]} 4. d3 {[%emt 0:00:
00]} e6 {[%emt 0:00:28]} 5. Bf4 {[%emt 0:00:19]} d6 {[%emt 0:01:52]} 6. Nf3 {
[%emt 0:01:40]} Be7 {[%emt 0:00:19]} 7. O-O {[%emt 0:02:11]} a6 {[%emt 0:00:24]
} 8. a4 {[%emt 0:04:29]} Qb6 {[%emt 0:01:35]} 9. Rb1 {[%emt 0:02:35]} e5 {
[%emt 0:01:22]} 10. Bg5 {[%emt 0:02:41]} Bg4 {[%emt 0:00:51]} 11. Bxf6 {
[%emt 0:01:18]} Bxf6 {[%emt 0:00:40]} 12. Nd5 {[%emt 0:01:47]} Qd8 {[%emt 0:00:
00]} 13. c3 {[%emt 0:01:08]} Rb8 {[%emt 0:01:28]} 14. Qd2 {[%emt 0:02:41]} Bxf3
{[%emt 0:01:22]} 15. gxf3 {[%emt 0:00:22]} O-O {[%emt 0:01:44]} 16. f4 {
[%emt 0:03:26]} exf4 {[%emt 0:00:49]} 17. Qxf4 {[%emt 0:03:43]} Be5 {[%emt 0:
00:00]} 18. Qg4 {[%emt 0:02:09]} g6 {[%emt 0:01:11]} 19. f4 {[%emt 0:01:48]}
Bg7 {[%emt 0:00:36]} 20. f5 {[%emt 0:06:16]} Ne5 {[%emt 0:00:47]} 21. Qg3 {
[%emt 0:04:40]} Nxc4 {[%emt 0:01:17]} 22. f6 {[%emt 0:00:51]} Nd2 {[%emt 0:00:
00]} 23. Rbd1 {[%emt 0:00:41]} Nxf1 {[%emt 0:01:08]} 24. Rxf1 {[%emt 0:00:11]}
h6 {[%emt 0:09:30]} 25. h4 {[%emt 0:02:15]} h5 {[%emt 0:01:59]} 26. Rf5 {
[%emt 0:01:01]} Bh6 {[%emt 0:02:00]} 27. Kg2 {[%emt 0:00:48]} Kh7 {[%emt 0:00:
00]} 28. Rxh5 {[%emt 0:00:15]} gxh5 {[%emt 0:02:16]} 29. Qf3 {[%emt 0:02:56]}
Rg8+ {[%emt 0:05:13]} 30. Kf2 {[%emt 0:01:20]} Rg6 {[%emt 0:04:58]} 31. d4 {
[%emt 0:01:10]} Qd7 {[%emt 0:01:37]} 32. e5 {[%emt 0:03:59]} Qg4 {[%emt 0:00:
00]} 33. Qxg4 {[%emt 0:08:54]} Rxg4 {[%emt 0:00:10]} 34. exd6 {[%emt 0:00:40]}
cxd4 {[%emt 0:00:17]} 35. Nb6 {[%emt 0:02:38]} d3 {[%emt 0:00:19]} 36. Nd7 {
[%emt 0:00:41]} Rd8 {[%emt 0:01:00]} 37. Ne5 {[%emt 0:01:38]} Rxd6 {[%emt 0:00:
00]} 38. Nxg4 {[%emt 0:00:54]} hxg4 {[%emt 0:00:03]} 39. Kg3 {[%emt 0:00:52]}
d2 {[%emt 0:00:08]} 40. Kxg4 {[%emt 0:03:33]} d1=Q+ {[%emt 0:00:02]} 41. Kf5 {
[%emt 0:30:17]} Qf3+ {[%emt 0:31:24]} 42. Ke5 {[%emt 0:01:22]} Qd5# {[%emt 0:
00:00]} 0-1

[Event "44th Chess Olympiad Open 2022"]
[Site "Chennai"]
[Date "2022.08.02"]
[Round "5.1"]
[White "Harikrishna, Pentala"]
[Black "Deac, Bogdan-Daniel"]
[Result "1/2-1/2"]
[WhiteElo "2720"]
[BlackElo "2692"]
[Annotator "TA"]
[PlyCount "61"]
[EventDate "2022.??.??"]
[TimeControl "60"]

{[%evp 17,61,11,11,0,0,0,0,0,4,0,0,7,8,0,0,0,0,0,0,0,0,0,0,0,0,0,0,0,0,0,0,-4,
0,0,0,0,0,-8,-21,-21,-13,-27,-21,-56,-43,-41]} 1. d4 {[%emt 0:00:03]} Nf6 {
[%emt 0:00:16]} 2. c4 {[%emt 0:00:05]} e6 {[%emt 0:00:03]} 3. Nf3 {[%emt 0:00:
00]} d5 {[%emt 0:00:04]} 4. Nc3 {[%emt 0:00:06]} Nbd7 {[%emt 0:00:52]} 5. Bg5 {
[%emt 0:07:33]} h6 {[%emt 0:02:48]} 6. Bh4 {[%emt 0:00:52]} Be7 {[%emt 0:00:05]
} 7. e3 {[%emt 0:00:34]} O-O {[%emt 0:00:15]} 8. Qc2 {[%emt 0:04:28]} c5 {
[%emt 0:03:13]} 9. Rd1 {[%emt 0:05:15]} Qa5 {[%emt 0:09:28]} 10. Nd2 {[%emt 0:
00:00][%cal Yf3d2,Yd2c4,Yc4e5] D61: Queen's Gambit Declined: Classical: 7 Qc2.}
cxd4 {[%emt 0:12:32]} 11. exd4 {[%emt 0:07:54]} dxc4 {[%emt 0:13:11]} 12. Nxc4
{[%emt 0:00:40] The position is equal.} Qd8 {[%emt 0:00:00]} 13. Be2 {[%emt 0:
02:22]} Nb6 {[%emt 0:02:30] [#]} 14. O-O $146 {[%emt 0:08:28]} ({Predecessor:} 
14. Nxb6 Qxb6 15. O-O Bd7 16. d5 Qb4 17. Bxf6 Bxf6 18. Ne4 Be5 19. a3 Ba4 20.
Qd3 {½-½ (30) Belous,V (2558)-Ashwin,J (2495) Charlotte 2018}) 14... Bd7 {
[%emt 0:09:07]} 15. Ne5 {[%emt 0:10:15]} Rc8 {[%emt 0:03:02][%cal Yd7a4]} 16.
Qb3 {[%emt 0:03:26] Prevents Ba4.} Bc6 {[%emt 0:06:55]} 17. Nxc6 {[%emt 0:03:
41]} bxc6 {[%emt 0:00:45]} 18. Qc2 {[%emt 0:02:51]} a5 {[%emt 0:05:55]} 19. a3
{[%emt 0:01:26]} Qc7 {[%emt 0:03:01]} 20. Bg3 {[%emt 0:03:40]} Qa7 {[%emt 0:03:
41]} 21. Rd3 {[%emt 0:00:51]} Rfd8 {[%emt 0:02:10]} 22. Rfd1 {[%emt 0:01:04]}
Bd6 {[%emt 0:04:57]} 23. Bh4 {[%emt 0:05:39] aiming for Bxf6.} Be7 {[%emt 0:00:
22]} 24. Rf3 {[%emt 0:11:22]} Nbd5 {[%emt 0:01:17][%cal Yb6d5,Yd5e7,Ye7f5]} 25.
Na4 {[%emt 0:02:38]} Ne8 {[%emt 0:04:41][%cal Yf6e8,Ye8d6,Yd6f5] Pair of
Knights!} 26. Bg3 {[%emt 0:00:57]} Nd6 {[%emt 0:03:31]} 27. Nc5 {[%emt 0:03:23]
} Nf5 {[%emt 0:00:00]} 28. Be5 {[%emt 0:00:19]} Bd6 {[%emt 0:01:06]} 29. Bd3 {
[%emt 0:02:59]} Nde7 {[%emt 0:00:53] And now ...Bxe5 would win.} 30. Bxf5 {
[%emt 0:01:26]} Nxf5 {[%emt 0:01:48]} 31. Rfd3 {[%emt 0:00:55] Weighted Error
Value: White=0.04 (flawless) /Black=0.00 (flawless)} 1/2-1/2

[Event "44th Chess Olympiad Open 2022"]
[Site "Chennai"]
[Date "2022.08.02"]
[Round "5.1"]
[White "Erigaisi Arjun"]
[Black "Parligras, Mircea-Emilian"]
[Result "1-0"]
[WhiteElo "2689"]
[BlackElo "2576"]
[Annotator "TA"]
[PlyCount "91"]
[EventDate "2022.??.??"]
[TimeControl "60"]

{[%evp 11,91,-6,19,0,0,0,0,0,0,0,0,0,3,0,2,10,19,23,23,12,6,-32,-37,-37,-41,
-39,-43,-42,-41,-51,-53,-47,-37,-50,-18,-10,-14,-13,-16,-40,0,0,0,0,0,0,0,0,0,
-11,0,0,0,0,0,0,0,0,0,0,4,0,0,0,0,0,47,76,362,333,364,363,587,653,937,912,1058,
920,12838,12839,2531,1921]} 1. d4 {[%emt 0:00:07]} Nf6 {[%emt 0:00:08]} 2. c4 {
[%emt 0:00:06]} e6 {[%emt 0:00:06]} 3. Nc3 {[%emt 0:00:04]} Bb4 {[%emt 0:00:18]
} 4. f3 {[%emt 0:00:07]} d5 {[%emt 0:00:20]} 5. a3 {[%emt 0:00:06]} Bxc3+ {
[%emt 0:00:12]} 6. bxc3 {[%emt 0:00:05]} c6 {[%emt 0:00:09]} 7. e4 {[%emt 0:00:
00] E20: Nimzo-Indian: 4 g3 and 4 f3.} dxe4 {[%emt 0:00:18]} 8. fxe4 {[%emt 0:
00:00]} e5 $1 {[%emt 0:00:10]} 9. Nf3 {[%emt 0:00:07] The position is equal.}
Bg4 {[%emt 0:00:17]} 10. Qd3 {[%emt 0:00:06]} Nbd7 {[%emt 0:00:28]} 11. dxe5 {
[%emt 0:00:12]} Nh5 {[%emt 0:00:29]} 12. Be2 {[%emt 0:00:07] [#]} O-O $146 {
[%emt 0:00:28]} ({Predecessor:} 12... Qa5 13. O-O g6 14. Qd6 O-O-O 15. Be3 Qxc3
16. Bd2 Qc2 17. Nd4 Qxd2 18. Bxg4 Nf4 19. Rxf4 Qxf4 20. Nxc6 bxc6 21. Rb1 {
1-0 (21) Khenkin,I (2586)-Satyapragyan,S (2431) Andorra 2006}) 13. O-O {
[%emt 0:00:06]} Qb6+ {[%emt 0:00:36]} 14. Rf2 {[%emt 0:02:12]} Rfe8 {[%emt 0:
00:00]} 15. Be3 {[%emt 0:19:36]} Qc7 {[%emt 0:00:29]} 16. c5 {[%emt 0:20:05]}
Bxf3 {[%emt 0:22:58]} 17. gxf3 {[%emt 0:00:54]} Nxe5 {[%emt 0:00:18]} 18. Qc2 {
[%emt 0:07:54] f4 is the strong threat.} Ng6 {[%emt 0:00:44] Against f4} 19.
Kh1 {[%emt 0:00:59]} Nhf4 {[%emt 0:02:10]} 20. Bc4 {[%emt 0:01:50]} Rad8 {
[%emt 0:14:20]} 21. Rd1 {[%emt 0:01:31]} Rxd1+ {[%emt 0:06:21]} 22. Qxd1 {
[%emt 0:00:11]} Rd8 {[%emt 0:01:14] Prevents Qd6.} 23. Rd2 {[%emt 0:02:13]}
Rxd2 {[%emt 0:01:15]} 24. Qxd2 {[%emt 0:00:05]} Kf8 {[%emt 0:03:53]} 25. Bf2 {
[%emt 0:17:03]} h5 {[%emt 0:06:52]} (25... Ke8 {with more complications.} 26.
Bg3 Qe5 27. Bf1 Qh5) 26. h4 {[%emt 0:02:20]} Ne6 {[%emt 0:13:05]} 27. Kg2 {
[%emt 0:09:47]} Ngf4+ {[%emt 0:10:08] Pair of Knights!} 28. Kf1 {[%emt 0:00:33]
} Qe5 {[%emt 0:01:00]} 29. Qd6+ {[%emt 0:07:05]} Qxd6 {[%emt 0:00:08]} 30. cxd6
$11 {[%emt 0:00:04] Endgame KBB-KNN} b6 {[%emt 0:04:28]} 31. Bg3 {[%emt 0:01:
33]} f6 {[%emt 0:02:53]} 32. Kf2 {[%emt 0:00:25]} Ke8 {[%emt 0:00:00]} 33. Ke3
{[%emt 0:00:25]} Ng2+ {[%emt 0:00:21]} 34. Kf2 {[%emt 0:00:10]} Ngf4 {[%emt 0:
00:05]} 35. Bf1 {[%emt 0:00:35]} (35. Ke3 $5 {[%cal Rg3f4]} Ng2+ 36. Ke2 Ngf4+
37. Ke3 $11) 35... Kd7 {[%emt 0:03:20]} 36. Ke3 {[%emt 0:00:11]} g5 {[%emt 0:
00:04]} 37. hxg5 {[%emt 0:00:22]} fxg5 {[%emt 0:00:04]} 38. e5 {[%emt 0:00:04]}
h4 {[%emt 0:06:12]} (38... Nd5+ $11 39. Kd2 (39. Ke4 h4 $11) 39... b5) 39. Bh2
$1 $14 {[%emt 0:00:05] Hoping for Ke4.} b5 $2 {[%emt 0:01:04] This move loses
the game for Black.} (39... h3 $16) 40. Ke4 $18 {[%emt 0:03:45]} Nd5 {[%emt 0:
00:42] [#]} 41. Bh3 $1 {[%emt 0:15:59] Threatens to win with Kf5.} Nxc3+ $2 {
[%emt 0:12:41] [#]} (41... a5 42. Kd3 a4) 42. Kf5 $1 {[%emt 0:00:19] White is
clearly winning.} Nd4+ {[%emt 0:00:53]} 43. Kxg5+ {[%emt 0:07:32] Discovered
Attack} Kd8 {[%emt 0:00:04]} 44. Bg4 {[%emt 0:00:40]} a5 {[%emt 0:02:21]} 45.
e6 {[%emt 0:00:51]} Nd5 {[%emt 0:01:23]} 46. Be5 {[%emt 0:00:16] Weighted
Error Value: White=0.02 (flawless) /Black=0.28 (precise)} 1-0

[Event "44th Chess Olympiad Open 2022"]
[Site "Chennai"]
[Date "2022.08.02"]
[Round "5.1"]
[White "Lupulescu, Constantin"]
[Black "Vidit, Santosh Gujrathi"]
[Result "1/2-1/2"]
[WhiteElo "2628"]
[BlackElo "2714"]
[Annotator "TA"]
[PlyCount "62"]
[EventDate "2022.??.??"]
[TimeControl "60"]

{[%evp 11,62,0,0,-11,-7,-7,0,-2,-23,-8,-11,-36,0,-13,0,-12,-10,-31,-29,-34,-36,
-36,-21,-55,0,0,0,0,0,0,0,0,0,0,0,0,0,0,0,0,0,0,0,-19,-19,-19,-14,-12,0,0,0,0,
0]} 1. d4 {[%emt 0:00:03]} Nf6 {[%emt 0:00:45]} 2. c4 {[%emt 0:00:04]} e6 {
[%emt 0:00:07]} 3. Nc3 {[%emt 0:00:11]} Bb4 {[%emt 0:00:22]} 4. e3 {[%emt 0:00:
00]} O-O {[%emt 0:00:22]} 5. Bd3 {[%emt 0:00:07]} d5 {[%emt 0:00:38]} 6. cxd5 {
[%emt 0:00:12]} exd5 {[%emt 0:00:10]} 7. a3 {[%emt 0:00:07] E48: Nimzo-Indian:
Rubinstein: 5 Bd3 d5 including 6 Ne2, but excluding 6 a3.} Bd6 {[%emt 0:00:31]}
8. Qc2 {[%emt 0:00:11]} c6 {[%emt 0:01:17]} 9. Nge2 {[%emt 0:01:06]} Re8 {
[%emt 0:01:36]} 10. O-O {[%emt 0:00:42]} Nbd7 {[%emt 0:02:58][%cal Yb8d7,Yd7f8,
Yf8g6] [#]} 11. b4 $146 {[%emt 0:06:22]} ({Predecessor:} 11. Bd2 a5 12. f3 c5
13. Nb5 Bf8 14. b3 b6 15. g4 a4 16. bxa4 c4 17. Bf5 {0-1 (69) Ivanisevic,I 
(2601)-Sjugirov,S (2680) Belgrade 2022}) 11... b6 {[%emt 0:02:59]} 12. Bd2 {
[%emt 0:13:35]} Nf8 {[%emt 0:06:32]} 13. Nf4 {[%emt 0:10:58]} Ng6 {[%emt 0:07:
32]} 14. Nce2 {[%emt 0:06:39]} Bd7 {[%emt 0:09:24]} 15. a4 {[%emt 0:00:00]
[%cal Ya3a4,Ya4a5]} Qe7 {[%emt 0:08:09]} 16. a5 {[%emt 0:04:30]} Ne4 {[%emt 0:
11:58]} ({Don't play} 16... Bxb4 17. Bxb4 Qxb4 18. Rfb1 $11) 17. Be1 {[%emt 0:
02:33][%cal Yb4b5]} (17. b5 {feels hotter.} Nxf4 18. Nxf4 Bxf4 19. bxc6 Bxh2+
20. Kxh2 Bxc6 21. Qxc6 Nxd2 22. Rh1) 17... Bxf4 {[%emt 0:12:17]} (17... Nxf4
$15 18. Nxf4 b5) 18. Nxf4 $11 {[%emt 0:10:29] The position is equal.} Nxf4 {
[%emt 0:00:38]} 19. exf4 {[%emt 0:00:09]} Qf6 {[%emt 0:07:44]} 20. axb6 {
[%emt 0:03:15]} axb6 {[%emt 0:00:06]} 21. Rxa8 {[%emt 0:00:52]} Rxa8 {[%emt 0:
00:00]} 22. Bxe4 {[%emt 0:01:50]} dxe4 {[%emt 0:00:07]} 23. Qxe4 {[%emt 0:00:
00]} Bf5 {[%emt 0:09:07]} 24. Qe3 {[%emt 0:00:47]} Qg6 {[%emt 0:02:55] [#] ...
Bd3 is the strong threat.} 25. Bc3 {[%emt 0:01:24]} Be4 {[%emt 0:00:09][%csl
Ge4][%cal Rg6g2]} 26. f3 {[%emt 0:01:02]} Bd5 {[%emt 0:00:07]} 27. Ra1 {
[%emt 0:04:52]} Rxa1+ {[%emt 0:00:16]} 28. Bxa1 {[%emt 0:00:02][%cal Re3e8] [#]
} Qb1+ {[%emt 0:01:15]} 29. Kf2 {[%emt 0:00:05][%cal Re3e8]} Qc2+ {[%emt 0:00:
00]} 30. Qe2 {[%emt 0:01:33]} Qxe2+ {[%emt 0:00:08]} 31. Kxe2 {[%emt 0:00:03]}
f5 {[%emt 0:00:14] Weighted Error Value: White=0.08 (flawless) /Black=0.07 
(flawless)} 1/2-1/2

[Event "44th Chess Olympiad Open 2022"]
[Site "Chennai"]
[Date "2022.08.02"]
[Round "5.1"]
[White "Jianu, Vlad-Cristian"]
[Black "Narayanan.S.L"]
[Result "1/2-1/2"]
[WhiteElo "2511"]
[BlackElo "2659"]
[Annotator "TA"]
[PlyCount "63"]
[EventDate "2022.??.??"]
[TimeControl "60"]

{[%evp 25,63,4,21,25,29,10,12,0,0,0,0,0,0,0,9,0,10,10,21,12,21,0,0,0,7,0,0,0,0,
0,0,0,0,0,0,0,0,0,0,0]} 1. d4 {[%emt 0:00:03]} Nf6 {[%emt 0:00:05]} 2. Nf3 {
[%emt 0:00:04]} d5 {[%emt 0:00:07]} 3. c4 {[%emt 0:00:34]} e6 {[%emt 0:00:06]}
4. Nc3 {[%emt 0:00:31]} Bb4 {[%emt 0:00:08]} 5. Bg5 {[%emt 0:00:54]} h6 {
[%emt 0:00:39]} 6. Bxf6 {[%emt 0:01:02]} Qxf6 {[%emt 0:00:08]} 7. e3 {[%emt 0:
00:00]} O-O {[%emt 0:00:36]} 8. Qb3 {[%emt 0:01:11]} c5 {[%emt 0:01:08]} 9.
cxd5 {[%emt 0:00:35]} exd5 {[%emt 0:02:19]} 10. dxc5 {[%emt 0:00:33]} Bxc3+ {
[%emt 0:00:51]} 11. Qxc3 {[%emt 0:00:06]} Qxc3+ {[%emt 0:00:05]} 12. bxc3 {
[%emt 0:00:05]} Nd7 {[%emt 0:00:04]} 13. Rd1 {[%emt 0:01:12][%cal Ya1d1,Yd1d5,
Yd5d4,Yd4c4]} Nxc5 {[%emt 0:00:06] 13...Nxc5 has become a bit dusty these days.
} 14. Rxd5 {[%emt 0:08:49] D38: Queen's Gambit Declined: Ragozin Defence (4
Nf3 Bb4).} b6 {[%emt 0:00:05][%cal Yb7b6,Yb6b5,Yb5c4]} 15. Rd4 {[%emt 0:09:56]}
Be6 {[%emt 0:01:17] The position is equal.} 16. Bc4 {[%emt 0:10:53]} Rac8 {
[%emt 0:06:15] White must now prevent ...Bxc4.} 17. O-O {[%emt 0:09:17]} Bxc4 {
[%emt 0:02:34]} 18. Rxc4 {[%emt 0:00:06]} b5 {[%emt 0:00:00]} 19. Rb4 {[%emt 0:
07:41]} a6 {[%emt 0:00:19]} 20. Nd4 {[%emt 0:00:19]} Na4 {[%emt 0:23:01]} 21.
c4 {[%emt 0:01:19]} Rxc4 {[%emt 0:00:09]} 22. Rxc4 {[%emt 0:00:04]} bxc4 $11 {
[%emt 0:00:07] Endgame KRN-KRN} 23. Rb1 {[%emt 0:13:32]} Rc8 {[%emt 0:05:46] 
[#]} 24. Kf1 $146 {[%emt 0:06:02]} ({Predecessor:} 24. Rc1 Rc5 25. Kf1 Nb6 26.
a3 Ra5 27. Rb1 Nd5 28. Nc2 g6 29. e4 Nc3 30. Rb8+ {½-½ (42) Ambartsoumian,A 
(2345)-Tompa,J (2445) Cappelle la Grande 1991}) 24... c3 {[%emt 0:12:25]} 25.
Rb4 {[%emt 0:10:22]} Nb2 {[%emt 0:00:00] [#] aiming for ...c2.} ({Don't play} 
25... c2 26. Nxc2 Nc3 27. Ne1 $16) 26. Ne2 {[%emt 0:05:24][%cal Ye2c3]} Nc4 $1
{[%emt 0:28:49]} 27. Nxc3 {[%emt 0:00:00]} Nxe3+ {[%emt 0:00:19]} 28. fxe3 {
[%emt 0:00:06] Threatens to win with Ne2.} Rxc3 {[%emt 0:00:05]} 29. Ra4 $1 {
[%emt 0:00:12]} Rxe3 {[%emt 0:00:40]} 30. Rxa6 {[%emt 0:00:07]} h5 {[%emt 0:00:
25]} 31. Kf2 {[%emt 0:00:13]} Rc3 {[%emt 0:00:07]} 32. h4 {[%emt 0:00:57] A
rather calm draw. Weighted Error Value: White=0.05 (flawless) /Black=0.02 
(flawless)} 1/2-1/2